bitfinex-derivatives/quotes_BNBF0:USTF0_20250417
["timestamp","ask_amount","ask_price","bid_price","bid_amount"]
[1744897207468,0.33992215,588.37,586.77,1.38]
[1744897207669,0.30358244,588.36,586.77,1.38]
[1744897207969,0.33993949,588.34,586.77,1.38]
[1744897208271,0.30358244,588.33,586.77,1.38]
[1744897208468,0.30358244,588.32,586.77,1.38]
[1744897208671,1.29824102,588.22,586.77,1.38]
[1744897208869,0.3400204,588.2,586.77,1.38]
[1744897209068,0.30358244,588.19,586.77,1.38]
[1744897209268,0.34003774,588.17,586.77,1.38]
[1744897209467,0.30358244,588.16,586.77,1.38]
[1744897209669,0.34005508,588.14,586.77,1.38]
[1744897209872,0.30358244,588.13,586.77,1.38]
[1744897210069,0.34007243,588.11,586.77,1.38]
[1744897210271,0.30358244,588.1,586.77,1.38]
[1744897210471,0.34008978,588.08,586.77,1.38]
[1744897210674,0.30358244,588.07,586.77,1.38]
[1744897210973,0.34010713,588.05,586.77,1.38]
[1744897211174,0.30358244,588.04,586.77,1.38]
[1744897211474,0.34012448,588.02,586.77,1.38]
[1744897211673,0.30358244,588.01,586.77,1.38]
[1744897211875,0.30358244,588.0,586.77,1.38]
[1744897212074,0.30358244,587.99,586.77,1.38]
[1744897212274,0.30358244,587.98,586.77,1.38]
[1744897212476,0.30358244,588.01,586.77,1.38]
[1744897212675,0.34014183,587.99,586.77,1.38]
[1744897212872,0.30358244,587.98,586.77,1.38]
[1744897213177,0.34015919,587.96,586.77,1.38]
[1744897213370,0.30358244,587.95,586.77,1.38]
[1744897213873,0.34017655,587.93,586.77,1.38]
[1744897214175,0.30358244,587.92,586.77,1.38]
[1744897214375,0.34019391,587.9,586.77,1.38]
[1744897214578,0.30364439,587.89,586.77,1.38]
[1744897214770,0.34021127,587.87,586.77,1.38]
[1744897214971,0.30364439,587.86,586.77,1.38]
[1744897215876,0.34022863,587.84,586.77,1.38]
[1744897216077,0.30364439,587.83,586.77,1.38]
[1744897216377,0.34024599,587.81,586.77,1.38]
[1744897216574,0.30364439,587.8,586.77,1.38]
[1744897216774,0.34025757,587.79,586.77,1.38]
[1744897216978,0.30364439,587.78,586.77,1.38]
[1744897217178,0.34026915,587.77,586.77,1.38]
[1744897217378,0.30364439,587.76,586.77,1.38]
[1744897217577,0.34028073,587.75,586.77,1.38]
[1744897217778,0.30363282,587.74,586.77,1.38]
[1744897217979,0.34029231,587.73,586.77,1.38]
[1744897218175,0.30363282,587.72,586.77,1.38]
[1744897218379,0.34030389,587.71,586.77,1.38]
[1744897218579,0.30363282,587.7,586.77,1.38]
[1744897218777,0.34031547,587.69,586.77,1.38]
[1744897218976,0.30363282,587.68,586.77,1.38]
[1744897219181,0.34032705,587.67,586.77,1.38]
[1744897219375,0.30363282,587.66,586.77,1.38]
[1744897219581,0.34033863,587.65,586.77,1.38]
[1744897219882,0.30363282,587.64,586.77,1.38]
[1744897220779,0.34035022,587.63,586.77,1.38]
[1744897220976,0.30363282,587.62,586.77,1.38]
[1744897221182,0.3403618,587.61,586.77,1.38]
[1744897221382,0.30363282,587.6,586.77,1.38]
[1744897221584,0.34037338,587.59,586.77,1.38]
[1744897221884,0.30363282,587.58,586.77,1.38]
[1744897222084,0.34038497,587.57,586.77,1.38]
[1744897222379,0.30363282,587.56,586.77,1.38]
[1744897222586,0.34039656,587.55,586.77,1.38]
[1744897222784,0.30363282,587.54,586.77,1.38]
[1744897222980,0.34040814,587.53,586.77,1.38]
[1744897223285,0.30363282,587.52,586.77,1.38]
[1744897223585,0.34041973,587.51,586.77,1.38]
[1744897223782,0.30363282,587.5,586.77,1.38]
[1744897226281,0.543,587.49,586.77,1.38]
[1744897226481,0.30363282,587.48,586.77,1.38]
[1744897228686,0.543,587.49,586.77,1.38]
[1744897228888,0.30362222,587.48,586.77,1.38]
[1744897231589,0.543,587.49,586.77,1.38]
[1744897231788,0.30368124,587.48,586.77,1.38]
[1744897231986,0.543,587.49,586.77,1.38]
[1744897232189,0.30367895,587.48,586.77,1.38]
[1744897233589,0.3037014,587.47,586.77,1.38]
[1744897233890,0.3037014,587.46,586.77,1.38]
[1744897234090,0.3037014,587.48,586.77,1.38]
[1744897234791,0.543,587.49,586.77,1.38]
[1744897245394,0.34041973,587.51,586.77,1.38]
[1744897245595,0.30377066,587.5,586.77,1.38]
[1744897246090,0.34041973,587.51,586.77,1.38]
[1744897246289,0.30376852,587.5,586.77,1.38]
[1744897247599,0.34041973,587.51,586.77,1.38]
[1744897247795,0.3037708,587.5,586.77,1.38]
[1744897248495,0.435,587.49,586.77,1.38]
[1744897248696,0.3037708,587.48,586.77,1.38]
[1744897250798,0.435,587.49,586.77,1.38]
[1744897250999,0.30376504,587.48,586.77,1.38]
[1744897253898,0.435,587.49,586.77,1.38]
[1744897254095,0.30376036,587.48,586.77,1.38]
[1744897254301,0.435,587.49,586.77,1.38]
[1744897260504,0.34041973,587.51,586.77,1.38]
[1744897264306,0.516,587.5,586.77,1.38]
[1744897287938,0.516,587.5,586.77,0.967]
[1744897288339,0.516,587.5,586.78,0.31287803]
[1744897288933,0.516,587.5,586.79,0.31287803]
[1744897289134,0.516,587.5,586.76,0.31287803]
[1744897289337,0.516,587.5,586.75,0.2961992]
[1744897289538,0.516,587.5,586.76,0.31284133]
[1744897290935,0.516,587.5,585.94,0.31284133]
[1744897291135,0.516,587.5,585.93,1.07975686]
[1744897291439,1.29824102,588.89,585.94,0.31284563]
[1744897291637,0.30391428,588.88,585.95,0.31284563]
[1744897291835,0.30390583,588.87,585.96,0.31285088]
[1744897292035,0.30390583,588.86,585.97,0.31285088]
[1744897292236,0.30390583,588.85,585.98,0.31285088]
[1744897292439,0.30390583,588.84,585.99,0.31285088]
[1744897292740,0.30390583,588.83,586.0,0.31285088]
[1744897292942,0.30390583,588.82,586.01,0.31285088]
[1744897293141,0.30390583,588.81,586.02,0.31285088]
[1744897293337,0.30390583,588.8,586.03,0.31285088]
[1744897293537,0.30390583,588.79,586.04,0.31285088]
[1744897293743,0.30390583,588.78,586.05,0.31285088]
[1744897294042,0.30390583,588.77,586.06,0.31285088]
[1744897294244,0.30390583,588.77,586.07,0.31285088]
[1744897294444,0.33976624,588.64,586.2,0.34118048]
[1744897294636,0.30390583,588.63,586.21,0.31285088]
[1744897295039,0.614,588.62,586.21,0.31285088]
[1744897295342,0.30390583,588.61,586.21,0.31285088]
[1744897295842,0.614,588.62,586.2,0.34118048]
[1744897296041,0.30390123,588.61,586.21,0.31284933]
[1744897296843,0.33984129,588.51,586.33,0.34110483]
[1744897297042,0.33984129,588.51,586.34,0.31284933]
[1744897297235,0.30390123,588.5,586.34,0.31284933]
[1744897297936,0.30390123,588.5,586.44,0.34104085]
[1744897298144,0.30390123,588.5,586.45,0.31284933]
[1744897298343,0.30390123,588.5,586.47,0.34102341]
[1744897298542,0.30390123,588.5,586.48,0.31284933]
[1744897299145,0.33984129,588.51,586.49,0.31284933]
[1744897299146,0.30390123,588.49,586.49,0.31284933]
[1744897299347,0.33986439,588.47,586.51,0.34100015]
[1744897299641,0.30390123,588.46,586.52,0.31284933]
[1744897299849,0.33988172,588.44,586.54,0.34098271]
[1744897300046,0.33988172,588.44,586.55,0.31284933]
[1744897300047,0.30390123,588.43,586.55,0.31284933]
[1744897300243,0.30390123,588.42,586.55,0.31284933]
[1744897300446,0.30390123,588.41,586.55,0.31284933]
[1744897300648,0.3399106,588.39,586.57,0.34096527]
[1744897300847,0.30387926,588.38,586.58,0.31285431]
[1744897301048,0.33992793,588.36,586.6,0.34094783]
[1744897301253,0.30387926,588.35,586.61,0.31285431]
[1744897301449,0.30387926,588.34,586.61,0.31285431]
[1744897301650,0.30387926,588.33,586.63,0.34093039]
[1744897301852,0.6438303,588.32,586.64,0.31285431]
[1744897302051,0.30387926,588.31,586.65,0.31285431]
[1744897302449,0.30387926,588.3,586.66,0.31285431]
[1744897302645,0.30387926,588.29,586.67,0.31285431]
[1744897302853,0.30387926,588.28,586.68,0.31285431]
[1744897303051,0.30387926,588.27,586.69,0.65374984]
[1744897303253,0.64386498,588.26,586.7,0.65374403]
[1744897303551,0.64387076,588.25,586.71,0.65373822]
[1744897303752,0.64387654,588.24,586.72,0.65373241]
[1744897304052,0.64388232,588.23,586.73,0.6537266]
[1744897304253,0.6438881,588.22,586.74,0.65372079]
[1744897304549,0.64389388,588.21,586.75,0.65371498]
[1744897304852,0.64389966,588.2,586.76,0.65370917]
[1744897305052,0.64390544,588.19,586.77,0.65370336]
[1744897305248,0.64391122,588.18,586.78,0.65369755]
[1744897305448,0.643917,588.17,586.79,0.65369174]
[1744897305653,0.30387926,588.16,586.8,0.65368593]
[1744897305854,0.64392278,588.16,586.81,0.65368013]
[1744897306051,0.30387926,588.15,586.82,0.65367432]
[1744897306354,0.30387926,588.15,586.83,0.65366851]
[1744897306548,0.30387926,588.15,586.84,0.6536627]
[1744897306746,0.34005508,588.14,586.85,0.6536569]
[1744897306952,0.34005508,588.14,586.86,0.34079678]
[1744897307148,0.30382361,588.13,586.87,0.31284339]
[1744897309655,0.30382361,588.13,586.88,0.34078516]
[1744897309857,0.30382361,588.13,586.89,0.31284339]
[1744897310058,0.34005508,588.14,586.9,0.34077355]
[1744897310251,0.30385789,588.13,586.91,0.31280042]
[1744897310556,0.30385789,588.13,586.92,0.34076194]
[1744897310758,0.30385789,588.13,586.93,0.31280042]
[1744897311656,0.34005508,588.14,586.92,0.34076194]
[1744897311958,0.30385539,588.13,586.94,0.34075033]
[1744897312150,0.30385539,588.13,586.95,0.31278681]
[1744897312349,0.30385539,588.13,586.96,0.34073872]
[1744897312554,0.30385539,588.13,586.97,0.31278681]
[1744897312756,0.30385539,588.13,586.98,0.34072711]
[1744897313053,0.30385539,588.13,586.99,0.31278681]
[1744897313256,0.30385539,588.13,586.99,0.65350811]
[1744897313457,0.30385539,588.13,587.0,0.31278681]
[1744897315358,0.30385539,588.13,587.01,0.5]
[1744897315561,0.30385539,588.13,587.02,0.31278681]
[1744897316458,0.34005508,588.14,587.03,0.34069809]
[1744897316659,0.30387962,588.13,587.04,0.31277523]
[1744897316965,0.30387962,588.13,587.05,0.34068648]
[1744897317265,0.30387962,588.13,587.06,0.31277523]
[1744897317465,0.30387962,588.13,587.07,0.34067487]
[1744897317665,0.30387962,588.13,587.08,0.31277523]
[1744897319966,0.559,588.12,587.08,0.31277523]
[1744897320167,0.30387962,588.11,587.08,0.31277523]
[1744897323067,0.559,588.12,587.07,0.34067487]
[1744897330475,0.559,588.12,587.08,0.682]
[1744897330671,0.559,588.12,587.09,0.31274565]
[1744897332080,0.559,588.12,587.08,0.682]
[1744897332279,0.559,588.12,587.09,0.31273808]
[1744897332980,0.559,588.12,587.1,0.34065746]
[1744897333279,0.559,588.12,587.11,0.31273808]
[1744897338477,0.559,588.12,587.1,0.34065746]
[1744897338681,0.559,588.12,587.11,0.31272419]
[1744897338881,0.559,588.12,587.11,0.77472419]
[1744897339076,0.559,588.12,587.12,0.31272419]
[1744897343080,0.34005508,588.14,587.12,0.31272419]
[1744897343279,0.34005508,588.14,587.11,0.75817021]
[1744897344185,0.34005508,588.14,587.12,0.31273717]
[1744897344785,0.34005508,588.14,587.11,0.462]
[1744897345879,0.647,588.13,587.11,0.462]
[1744897346085,0.647,588.13,587.11,0.7580858]
[1744897347786,0.647,588.13,587.11,0.462]
[1744897347989,0.647,588.13,587.11,0.75817904]
[1744897353696,0.647,588.13,587.11,0.462]
[1744897354995,0.647,588.13,587.11,0.75819038]
[1744897356895,0.647,588.13,587.11,0.29619038]
[1744897358097,0.30376442,588.12,587.12,0.31274062]
[1744897359900,0.30376442,588.12,587.11,0.31274062]
[1744897360195,0.30376442,588.12,587.11,0.60893478]
[1744897360501,0.647,588.13,587.12,0.31274062]
[1744897360800,0.647,588.13,587.13,0.682]
[1744897361099,0.647,588.13,587.14,0.31274062]
[1744897366003,0.647,588.13,587.15,0.31270338]
[1744897366304,0.647,588.13,587.16,0.31270338]
[1744897366503,0.647,588.13,587.14,0.31270338]
[1744897367403,0.647,588.13,587.13,0.97816643]
[1744897367605,0.647,588.13,587.14,0.31270136]
[1744897369008,0.647,588.13,587.13,0.97816391]
[1744897369207,0.647,588.13,587.14,0.31270058]
[1744897370410,0.30377355,588.12,587.14,0.31270058]
[1744897370709,0.30377355,588.12,587.15,0.427]
[1744897371010,0.30377355,588.12,587.16,0.31270058]
[1744897372712,0.30377355,588.12,587.15,0.427]
[1744897372713,0.647,588.13,587.15,0.427]
[1744897373811,0.647,588.13,587.15,0.86]
[1744897374011,0.34005508,588.14,587.15,0.86]
[1744897377515,0.65,588.13,587.15,0.86]
[1744897381715,0.65,588.13,587.16,0.34062265]
[1744897381914,0.65,588.13,587.17,0.31269615]
[1744897382116,0.65,588.13,587.18,0.34061105]
[1744897382315,0.65,588.13,587.19,0.31269615]
[1744897382513,0.65,588.13,587.19,0.6533014]
[1744897382714,0.65,588.13,587.19,0.34060525]
[1744897384817,0.65,588.13,587.2,0.31267914]
[1744897385018,0.65,588.13,587.19,0.34060525]
[1744897385316,0.65,588.13,587.2,0.31268045]
[1744897385517,0.65,588.13,587.19,0.34060525]
[1744897388714,0.34005508,588.14,587.19,0.34060525]
[1744897390715,0.34005508,588.14,587.2,0.695]
[1744897391516,0.34005508,588.14,587.21,0.599]
[1744897392119,0.547,588.13,587.21,0.599]
[1744897396617,0.547,588.13,587.22,0.34058785]
[1744897397325,0.547,588.13,587.23,0.3126368]
[1744897397526,0.547,588.13,587.24,0.34057625]
[1744897397728,0.547,588.13,587.25,0.3126368]
[1744897397922,0.547,588.13,587.26,0.34056465]
[1744897398127,0.547,588.13,587.27,0.3126368]
[1744897398423,0.547,588.13,587.28,0.34055305]
[1744897398622,0.547,588.13,587.29,0.3126368]
[1744897398823,0.547,588.13,587.3,0.34054146]
[1744897399021,0.547,588.13,587.31,0.3126368]
[1744897399323,0.547,588.13,587.32,0.34052986]
[1744897399527,0.547,588.13,587.33,0.3126368]
[1744897399724,0.547,588.13,587.34,0.65309709]
[1744897399926,0.547,588.13,587.35,0.6530913]
[1744897400124,0.547,588.13,587.36,0.6530855]
[1744897400322,0.547,588.13,587.37,0.6530797]
[1744897400526,0.547,588.13,587.38,0.6530739]
[1744897400726,0.547,588.13,587.39,0.65306811]
[1744897400925,0.547,588.13,587.4,0.65306231]
[1744897401126,0.547,588.13,587.41,0.31257883]
[1744897401529,0.547,588.13,587.4,0.34048348]
[1744897402933,0.547,588.13,587.4,0.83648348]
[1744897404930,0.547,588.13,587.41,0.31251244]
[1744897406829,0.547,588.13,587.42,0.34047189]
[1744897407132,0.547,588.13,587.43,0.31251244]
[1744897409034,0.547,588.13,587.42,0.34047189]
[1744897409234,0.29582655,588.77,587.42,0.34047189]
[1744897409429,0.33969699,588.76,587.42,0.34047189]
[1744897412835,0.589,588.75,587.42,0.34047189]
[1744897413135,0.33970853,588.74,587.42,0.34047189]
[1744897417933,0.33970853,588.74,587.43,0.31246243]
[1744897418640,0.30388717,588.73,587.45,0.3404545]
[1744897418836,0.33970853,588.74,587.46,0.31246243]
[1744897419036,0.33970853,588.74,587.45,0.3404545]
[1744897419338,0.30387992,588.73,587.46,0.31244718]
[1744897419635,0.30387992,588.73,587.47,0.34044291]
[1744897419835,0.30387992,588.73,587.48,0.31244718]
[1744897420739,0.33970853,588.74,587.49,0.452]
[1744897421035,0.30387626,588.73,587.5,0.3124435]
[1744897421440,0.30387626,588.73,587.51,0.34041973]
[1744897421639,0.30387626,588.73,587.52,0.3124435]
[1744897421834,0.33970853,588.74,587.52,0.3124435]
[1744897423241,0.3038666,588.73,587.52,0.3124435]
[1744897423436,0.33970853,588.74,587.53,0.34040814]
[1744897423740,0.33970853,588.74,587.54,0.3124435]
[1744897424642,0.30388402,588.73,587.54,0.3124435]
[1744897426147,0.33970853,588.74,587.54,0.3124435]
[1744897426446,0.33970853,588.74,587.53,0.34040814]
[1744897426743,0.30391955,588.73,587.53,0.34040814]
[1744897428940,0.33970853,588.74,587.53,0.34040814]
[1744897429145,0.3039235,588.73,587.53,0.34040814]
[1744897430549,0.3039235,588.73,587.54,0.31249194]
[1744897433046,0.29595108,588.72,587.53,0.34040814]
[1744897433241,0.3039235,588.71,587.53,0.34040814]
[1744897433447,0.64364934,588.71,587.54,0.31251854]
[1744897433747,0.64365511,588.7,587.54,0.31251854]
[1744897433946,0.64366088,588.69,587.54,0.31251854]
[1744897434147,0.30394413,588.68,587.55,0.3125164]
[1744897434341,0.30394413,588.68,587.54,0.3125164]
[1744897434548,0.30394413,588.68,587.53,0.34040814]
[1744897434847,0.30394413,588.68,587.54,0.31252147]
[1744897435241,0.30394413,588.68,587.53,0.34040814]
[1744897435547,0.33974892,588.67,587.53,0.34040814]
[1744897435747,0.30394413,588.66,587.53,0.34040814]
[1744897435943,0.64369882,588.66,587.53,0.34040814]
[1744897436145,0.69694413,588.65,587.53,0.34040814]
[1744897436347,1.03670459,588.65,587.53,0.34040814]
[1744897436544,0.30394413,588.64,587.53,0.34040814]
[1744897437350,0.33977201,588.63,587.53,0.34040814]
[1744897437551,0.30394413,588.62,587.53,0.34040814]
[1744897439253,0.64372191,588.62,587.53,0.34040814]
[1744897439553,0.30394413,588.61,587.53,0.34040814]
[1744897440657,0.30393505,588.6,587.53,0.34040814]
[1744897440852,0.30393505,588.61,587.53,0.34040814]
[1744897443161,0.30393505,588.61,587.53,0.94140814]
[1744897443759,0.33978933,588.6,587.53,0.94140814]
[1744897444054,0.30393505,588.59,587.53,0.94140814]
[1744897444256,0.64373015,588.59,587.53,0.94140814]
[1744897444456,0.30393505,588.58,587.53,0.94140814]
[1744897445164,0.30393505,588.58,587.54,0.312534]
[1744897448364,0.3397951,588.59,587.53,0.94140814]
[1744897448563,0.30393498,588.58,587.54,0.31253562]
[1744897454765,0.30393498,588.58,587.54,0.85053562]
[1744897454969,0.30393498,588.58,587.55,0.31253562]
[1744897456466,0.30393498,588.58,587.54,0.538]
[1744897456671,0.30393457,588.57,587.54,0.538]
[1744897456865,0.30393457,588.58,587.54,0.538]
[1744897457068,0.30393457,588.57,587.54,0.538]
[1744897457263,0.30393457,588.58,587.54,0.538]
[1744897457466,0.30393457,588.57,587.54,0.538]
[1744897457668,0.30393457,588.56,587.54,0.538]
[1744897457972,0.3397951,588.59,587.54,0.538]
[1744897458570,0.30393571,588.58,587.54,0.538]
[1744897460274,0.3397951,588.59,587.54,0.538]
[1744897460571,0.30394929,588.58,587.54,0.538]
[1744897461372,0.3397951,588.59,587.54,0.538]
[1744897461572,0.81693874,588.58,587.54,0.538]
[1744897461773,0.30393874,588.57,587.54,0.538]
[1744897462575,0.513,588.58,587.54,0.538]
[1744897463771,0.513,588.58,587.54,1.0]
[1744897465475,0.30393926,588.57,587.54,1.0]
[1744897465778,0.513,588.58,587.54,1.0]
[1744897465971,0.30394504,588.57,587.54,1.0]
[1744897466375,0.30394504,588.57,587.55,0.31253017]
[1744897467774,0.513,588.58,587.54,1.0]
[1744897467976,0.30395275,588.57,587.55,0.31252774]
[1744897469478,0.513,588.58,587.54,1.0]
[1744897469779,0.30393167,588.57,587.55,0.31253181]
[1744897472275,0.30392969,588.56,587.56,0.31253333]
[1744897472479,0.30392969,588.57,587.55,0.31253333]
[1744897472679,0.30392969,588.56,587.56,0.31253333]
[1744897472881,0.30392969,588.57,587.55,0.31253333]
[1744897473085,0.30392969,588.56,587.56,0.31253333]
[1744897473272,0.30392969,588.57,587.57,0.31253333]
[1744897473480,0.30392969,588.56,587.55,0.31253333]
[1744897473679,0.30392969,588.57,587.56,0.31253333]
[1744897473877,0.30392969,588.57,587.54,1.0]
[1744897474279,0.513,588.58,587.54,1.0]
[1744897474479,0.30387878,588.57,587.54,1.0]
[1744897475283,0.30387878,588.57,587.54,1.462]
[1744897475878,0.513,588.58,587.54,1.462]
[1744897476082,0.30387502,588.57,587.54,1.462]
[1744897476283,0.513,588.58,587.54,1.462]
[1744897477683,0.33980665,588.57,587.54,1.462]
[1744897480087,0.30382634,588.56,587.54,1.462]
[1744897480285,0.64363876,588.56,587.54,1.462]
[1744897480585,0.33981242,588.56,587.54,1.462]
[1744897480780,0.30385527,588.55,587.54,1.462]
[1744897482186,0.33981242,588.56,587.54,1.462]
[1744897482485,0.458,588.54,587.54,1.462]
[1744897483793,0.30384614,588.53,587.54,1.462]
[1744897485388,0.458,588.54,587.54,1.462]
[1744897485585,0.30384038,588.53,587.54,1.462]
[1744897486986,0.458,588.54,587.54,1.462]
[1744897487190,0.3038473,588.53,587.54,1.462]
[1744897488590,0.458,588.54,587.54,1.462]
[1744897488790,0.30384145,588.53,587.54,1.462]
[1744897491691,0.458,588.54,587.54,1.462]
[1744897491895,0.30384985,588.53,587.54,1.462]
[1744897496699,0.30386508,588.52,587.54,1.462]
[1744897496899,0.30386508,588.53,587.54,1.462]
[1744897497096,0.458,588.54,587.54,1.462]
[1744897497097,0.30386508,588.52,587.54,1.462]
[1744897497293,0.30386508,588.51,587.54,1.462]
[1744897497500,0.30386508,588.5,587.54,1.462]
[1744897497801,0.458,588.54,587.54,1.462]
[1744897500401,0.33981242,588.56,587.54,1.462]
[1744897503105,0.30390803,588.55,587.54,1.462]
[1744897504003,0.46,588.54,587.54,1.462]
[1744897504604,0.30394836,588.53,587.54,1.462]
[1744897505405,0.46,588.54,587.54,1.462]
[1744897506006,0.30395201,588.53,587.54,1.462]
[1744897506605,0.46,588.54,587.54,1.462]
[1744897507906,0.30394938,588.53,587.54,1.462]
[1744897508701,0.46,588.54,587.54,1.462]
[1744897508902,0.30395385,588.53,587.54,1.462]
[1744897510206,0.46,588.54,587.54,1.462]
[1744897510404,0.30394112,588.53,587.54,1.462]
[1744897510807,0.30394112,588.53,587.55,0.31253973]
[1744897511304,0.30394112,588.53,587.54,0.31255521]
[1744897511506,0.30394112,588.53,587.53,0.34040814]
[1744897511808,0.46,588.54,587.53,0.34040814]
[1744897512009,0.30391532,588.53,587.53,0.34040814]
[1744897513510,0.30387967,588.52,587.53,0.86340814]
[1744897513707,0.30387967,588.53,587.53,0.86340814]
[1744897513908,0.30387967,588.52,587.53,1.91840814]
[1744897514207,0.59990376,588.53,587.53,1.91840814]
[1744897514408,0.30387967,588.52,587.53,1.91840814]
[1744897514606,0.33984129,588.51,587.53,1.91840814]
[1744897514909,0.30387967,588.5,587.53,1.91840814]
[1744897515110,0.64372673,588.5,587.53,1.91840814]
[1744897515308,0.30387967,588.49,587.53,1.91840814]
[1744897516705,0.30387206,588.48,587.53,1.91840814]
[1744897516904,0.30387206,588.49,587.53,1.91840814]
[1744897517106,0.30387206,588.48,587.53,1.91840814]
[1744897517310,0.30387206,588.49,587.53,1.91840814]
[1744897517611,0.30387206,588.48,587.53,1.91840814]
[1744897517810,0.30387206,588.49,587.53,1.91840814]
[1744897518009,0.30387206,588.48,587.53,1.91840814]
[1744897518209,0.30387206,588.49,587.53,1.91840814]
[1744897519815,0.33985861,588.48,587.53,1.91840814]
[1744897520011,0.33985861,588.48,587.53,1.578]
[1744897520306,0.30387206,588.47,587.53,1.578]
[1744897520609,0.33987016,588.46,587.53,1.578]
[1744897520813,0.30387206,588.45,587.53,1.578]
[1744897521013,0.33988172,588.44,587.53,1.578]
[1744897521213,0.30387206,588.43,587.53,1.578]
[1744897521415,0.33988172,588.44,587.53,1.578]
[1744897530718,0.30384217,588.43,587.53,1.578]
[1744897535224,0.33988172,588.44,587.53,1.578]
[1744897537433,0.94488172,588.44,587.53,1.578]
[1744897545036,0.3038742,588.43,587.54,0.31255526]
[1744897545850,0.3038742,588.43,587.53,0.603]
[1744897547743,0.3038742,588.43,587.53,1.051]
[1744897548042,0.3038742,588.43,587.54,0.31256543]
[1744897548635,0.94488172,588.44,587.53,1.453]
[1744897548840,0.30386386,588.43,587.53,0.85]
[1744897550142,0.30386386,588.43,587.54,0.31256761]
[1744897550542,0.30386386,588.43,587.53,0.85]
[1744897550845,0.30386386,588.43,587.54,0.31256589]
[1744897551042,0.30386386,588.43,587.53,0.85]
[1744897551742,0.30386386,588.43,587.53,1.396]
[1744897555538,0.30386386,588.43,587.54,0.31257539]
[1744897555944,0.46,588.42,587.54,0.31257539]
[1744897556147,0.30386386,588.41,587.54,0.31257539]
[1744897558845,0.46,588.42,587.53,1.396]
[1744897566359,0.30383283,588.41,587.53,1.396]
[1744897569059,0.33988172,588.44,587.53,1.396]
[1744897569252,0.30382673,588.43,587.53,1.396]
[1744897570555,0.33988172,588.44,587.53,1.396]
[1744897570757,0.30381962,588.43,587.53,1.396]
[1744897572959,0.617,588.42,587.53,1.396]
[1744897574062,0.3038198,588.41,587.53,1.396]
[1744897577063,0.617,588.42,587.53,1.396]
[1744897577258,0.30381646,588.4,587.53,1.396]
[1744897577467,0.30381646,588.39,587.53,1.396]
[1744897577663,0.30381646,588.41,587.53,1.396]
[1744897577859,0.30381646,588.4,587.53,1.396]
[1744897578064,0.30381646,588.41,587.53,1.396]
[1744897578670,0.617,588.42,587.53,1.396]
[1744897578863,0.30384725,588.41,587.53,1.396]
[1744897580361,0.30384468,588.4,587.53,1.396]
[1744897580568,0.30384468,588.41,587.53,1.396]
[1744897580764,0.30384468,588.4,587.53,1.396]
[1744897580959,0.30384468,588.41,587.53,1.396]
[1744897583661,0.33990482,588.4,587.53,1.396]
[1744897583964,0.30384468,588.39,587.53,1.396]
[1744897584166,0.64375528,588.39,587.53,1.396]
[1744897584367,0.64376106,588.38,587.53,1.396]
[1744897584567,0.30384468,588.37,587.53,1.396]
[1744897588766,0.33992793,588.36,587.53,1.396]
[1744897588966,0.30384468,588.35,587.53,1.396]
[1744897589970,0.33993949,588.34,587.53,1.396]
[1744897590171,0.30368083,588.33,587.53,1.396]
[1744897590471,0.33995104,588.32,587.53,1.396]
[1744897590673,0.30368083,588.31,587.53,1.396]
[1744897590971,0.3399626,588.3,587.53,1.396]
[1744897591171,0.30368083,588.29,587.53,1.396]
[1744897593372,0.30367567,588.28,587.53,1.396]
[1744897593573,0.30367567,588.29,587.53,1.396]
[1744897593774,0.30367567,588.28,587.53,1.396]
[1744897593973,0.30367567,588.29,587.53,1.396]
[1744897594172,0.30367567,588.28,587.53,1.396]
[1744897594371,0.30367567,588.29,587.53,1.396]
[1744897594671,0.30367567,588.28,587.53,1.396]
[1744897594975,0.30367567,588.27,587.53,1.396]
[1744897595175,0.30367567,588.29,587.53,1.396]
[1744897596478,0.3399626,588.3,587.53,1.396]
[1744897596670,0.30373434,588.29,587.53,1.396]